fUST/lending_fUST_20260610
["ID","MTS","AMOUNT","RATE_DAILY","PERIOD"]
[424735842,1781099448000,-18786.68379719,0.00018477,2]
[424735844,1781099449000,-1152.0,0.00018477,2]
[424735847,1781099603000,-2828.26964075,0.00018109,2]
[424735848,1781099615000,971.73035925,0.0001811,2]
[424735849,1781099657000,-443.478,0.00017929,2]
[424735850,1781099691000,-4556.522,0.00017929,2]
[424735851,1781099691000,-3225.644368,0.0001811,2]
[424735854,1781099691000,-141.94136971,0.00018358,2]
[424735853,1781099691000,-190.22726229,0.00018292,2]
[424735852,1781099691000,-182.555,0.00018292,2]
[424735857,1781099799000,-4530.174,0.00018174,2]
[424735856,1781099799000,-152.0,0.00017932,7]
[424735855,1781099799000,-152.0,0.00017927,7]
[424735980,1781100632000,-7427.65963723,0.00018177,2]
[424735979,1781100632000,-300.0,0.00018168,2]
[424735976,1781100632000,-2513.12775604,0.0001718,2]
[424735977,1781100632000,-4641.1968634,0.00017353,2]
[424735975,1781100632000,-2486.87224396,0.0001718,2]
[424735978,1781100632000,-152.0,0.00017933,7]
[424736006,1781100638000,-707.38186298,0.00018177,2]
[424736010,1781100638000,-469.58372368,0.00018177,2]
[424736009,1781100638000,-3852.60813969,0.00018177,2]
[424736008,1781100638000,-14604.56778394,0.00018177,2]
[424736007,1781100638000,-42012.19939042,0.00018177,2]
[424736025,1781100644000,-535987.7735388,0.00018177,2]
[424736026,1781100644000,-50533.44886663,0.00018177,2]
[424736041,1781100646000,-927.19930424,0.00018177,2]
[424736040,1781100646000,-4766.21873479,0.00018177,2]
[424736039,1781100646000,-5500.0,0.00018177,2]
[424736038,1781100646000,-253.7425319,0.00018177,2]
[424736042,1781100713000,175.95309786,0.000241,30]
[424736082,1781101832000,-300.0,0.00017115,2]
[424736079,1781101832000,-300.0,0.00017115,2]
[424736076,1781101832000,-626.9028985,0.00016457,2]
[424736078,1781101832000,-300.0,0.00017115,2]
[424736085,1781101832000,-300.0,0.00017115,2]
[424736074,1781101832000,-152.0,0.00016449,7]
[424736073,1781101832000,-152.0,0.00016449,7]
[424736075,1781101832000,-300.0,0.00016456,2]
[424736065,1781101832000,-3596.14083135,0.00014386,2]
[424736067,1781101832000,-242.37794388,0.00014386,2]
[424736072,1781101832000,-163.61823261,0.00016443,2]
[424736071,1781101832000,-4816.39921116,0.00014531,2]
[424736069,1781101832000,-183.60078884,0.00014531,2]
[424736077,1781101832000,-300.0,0.00017115,2]
[424736081,1781101832000,-300.0,0.00017115,2]
[424736084,1781101832000,-300.0,0.00017115,2]
[424736083,1781101832000,-300.0,0.00017115,2]
[424736098,1781101832000,-7412.85263707,0.00017977,2]
[424736096,1781101832000,-391.13949003,0.00017976,2]
[424736092,1781101832000,-259.155972,0.00017895,2]
[424736090,1781101832000,-300.0,0.00017115,2]
[424736089,1781101832000,-300.0,0.00017115,2]
[424736093,1781101832000,-500.0,0.00017976,2]
[424736095,1781101832000,-500.0,0.00017976,2]
[424736094,1781101832000,-517.74712121,0.00017976,2]
[424736088,1781101832000,-300.0,0.00017115,2]
[424736086,1781101832000,-300.0,0.00017115,2]
[424736087,1781101832000,-300.0,0.00017115,2]
[424736097,1781101832000,-537.3344372,0.00017976,2]
[424736091,1781101832000,-300.0,0.00017115,2]
[424736080,1781101832000,-300.0,0.00017115,2]
[424736101,1781101838000,-40093.01385286,0.00017977,2]
[424736102,1781101838000,-14779.6450316,0.00017977,2]
[424736103,1781101838000,-61236.60095773,0.00017977,2]
[424736104,1781101839000,-7036.85132231,0.00017977,2]
[424736109,1781101841000,-2193.7,0.00017977,2]
[424736189,1781101846000,-586502.53579653,0.00017977,2]
[424736190,1781101846000,-182.5559212,0.00017977,2]
[424736218,1781101847000,-500.0,0.0001863,2]
[424736220,1781101847000,-500.0,0.0001863,2]
[424736221,1781101847000,-500.0,0.0001863,2]
[424736226,1781101847000,-151.5,0.0001863,2]
[424736228,1781101847000,-151.5,0.0001863,2]
[424736229,1781101847000,-151.5,0.0001863,2]
[424736227,1781101847000,-277.98147204,0.0001863,2]
[424736231,1781101847000,-151.5,0.0001863,2]
[424736233,1781101847000,-500.0,0.0001863,2]
[424736237,1781101847000,-500.0,0.0001863,2]
[424736235,1781101847000,-500.0,0.0001863,2]
[424736232,1781101847000,-264.52622948,0.0001863,2]
[424736234,1781101847000,-500.0,0.0001863,2]
[424736247,1781101847000,-391.38251954,0.00018776,2]
[424736236,1781101847000,-500.0,0.0001863,2]
[424736239,1781101847000,-500.0,0.0001863,2]
[424736249,1781101847000,-340.34708567,0.00018776,2]
[424736238,1781101847000,-500.0,0.0001863,2]
[424736250,1781101847000,-447.29430805,0.00018776,2]
[424736242,1781101847000,-510.22120042,0.0001863,2]
[424736244,1781101847000,-266.97785336,0.00018776,2]
[424736243,1781101847000,-259.155972,0.00018648,2]
[424736248,1781101847000,-635.82141343,0.00018776,2]
[424736222,1781101847000,-500.0,0.0001863,2]
[424736246,1781101847000,-854.32913077,0.00018776,2]
[424736240,1781101847000,-500.0,0.0001863,2]
[424736241,1781101847000,-500.0,0.0001863,2]
[424736245,1781101847000,-480.56013606,0.00018776,2]
[424736230,1781101847000,-151.5,0.0001863,2]
[424736219,1781101847000,-500.0,0.0001863,2]
[424736209,1781101847000,-280.50916686,0.00018577,7]
[424736223,1781101847000,-205.61067487,0.0001863,2]
[424736251,1781101847000,-1130.34917942,0.00018776,2]
[424736192,1781101847000,-323.71181366,0.00017977,2]
[424736196,1781101847000,-500.0,0.00018175,2]
[424736194,1781101847000,-263.10923353,0.00018076,2]
[424736195,1781101847000,-909.31,0.00018077,2]
[424736200,1781101847000,-392.72,0.00018176,2]
[424736191,1781101847000,-6439.94436518,0.00017977,2]
[424736193,1781101847000,-670.07547367,0.00018066,2]
[424736197,1781101847000,-500.0,0.00018176,2]
[424736198,1781101847000,-163.22,0.00018176,2]
[424736199,1781101847000,-500.0,0.00018176,2]
[424736202,1781101847000,-748.5728128,0.00018188,2]
[424736201,1781101847000,-10970.2573098,0.00018188,2]
[424736217,1781101847000,-500.0,0.0001863,2]
[424736203,1781101847000,-8111.0925661,0.00018188,2]
[424736208,1781101847000,-600.0,0.00018538,2]
[424736211,1781101847000,-629.87648423,0.00018609,2]
[424736205,1781101847000,-152.0,0.00018296,2]
[424736210,1781101847000,-191.41007551,0.00018577,2]
[424736204,1781101847000,-161.0,0.000182,5]
[424736206,1781101847000,-2010.8146385,0.00018451,2]
[424736207,1781101847000,-922.2283537,0.00018451,2]
[424736214,1781101847000,-172.5757068,0.0001863,2]
[424736225,1781101847000,-159.75273155,0.0001863,2]
[424736224,1781101847000,-151.5,0.0001863,2]
[424736213,1781101847000,-151.5,0.0001863,2]
[424736216,1781101847000,-500.0,0.0001863,2]
[424736215,1781101847000,-500.0,0.0001863,2]
[424736212,1781101847000,-151.5,0.0001863,2]
[424736257,1781101847000,-742.42687464,0.00018776,2]
[424736311,1781101847000,-500.0,0.00019452,2]
[424736254,1781101847000,-612.6247542,0.00018776,2]
[424736288,1781101847000,-500.0,0.00019178,2]
[424736286,1781101847000,-500.0,0.00019178,2]
[424736287,1781101847000,-500.0,0.00019178,2]
[424736291,1781101847000,-568.28,0.00019178,2]
[424736301,1781101847000,-500.0,0.00019178,2]
[424736302,1781101847000,-500.0,0.00019178,2]
[424736294,1781101847000,-500.0,0.00019178,2]
[424736292,1781101847000,-1002.07,0.00019178,2]
[424736299,1781101847000,-500.0,0.00019178,2]
[424736290,1781101847000,-500.0,0.00019178,2]
[424736295,1781101847000,-500.0,0.00019178,2]
[424736298,1781101847000,-509.53,0.00019178,2]
[424736293,1781101847000,-500.0,0.00019178,2]
[424736284,1781101847000,-696.0,0.00019178,2]
[424736296,1781101847000,-500.0,0.00019178,2]
[424736300,1781101847000,-500.0,0.00019178,2]
[424736303,1781101847000,-397.33,0.00019178,2]
[424736304,1781101847000,-325.08711468,0.000192,2]
[424736308,1781101847000,-259.155972,0.00019401,2]
[424736309,1781101847000,-280.50916686,0.00019415,7]
[424736305,1781101847000,-1766.17059285,0.0001922,2]
[424736314,1781101847000,-500.0,0.00019452,2]
[424736310,1781101847000,-500.0,0.00019452,2]
[424736307,1781101847000,-665.27168934,0.00019306,7]
[424736306,1781101847000,-151.0,0.00019306,2]
[424736312,1781101847000,-500.0,0.00019452,2]
[424736315,1781101847000,-500.0,0.00019452,2]
[424736261,1781101847000,-500.0,0.00019178,2]
[424736297,1781101847000,-500.0,0.00019178,2]
[424736289,1781101847000,-500.0,0.00019178,2]
[424736313,1781101847000,-580.14674527,0.00019452,2]
[424736283,1781101847000,-500.0,0.00019178,2]
[424736253,1781101847000,-698.19845897,0.00018776,2]
[424736259,1781101847000,-161.0,0.000191,10]
[424736256,1781101847000,-1333.55437756,0.00018776,2]
[424736260,1781101847000,-500.0,0.00019178,2]
[424736255,1781101847000,-173.7814147,0.00018776,2]
[424736264,1781101847000,-596.96094331,0.00019178,2]
[424736258,1781101847000,-417.15472785,0.00019004,2]
[424736252,1781101847000,-412.4593748,0.00018776,2]
[424736285,1781101847000,-5123.68,0.00019178,2]
[424736263,1781101847000,-300.09238969,0.00019178,2]
[424736274,1781101847000,-300.0,0.00019178,2]
[424736275,1781101847000,-500.0,0.00019178,2]
[424736276,1781101847000,-1736.27,0.00019178,2]
[424736266,1781101847000,-500.0,0.00019178,2]
[424736262,1781101847000,-500.0,0.00019178,2]
[424736265,1781101847000,-500.0,0.00019178,2]
[424736281,1781101847000,-500.0,0.00019178,2]
[424736270,1781101847000,-305.97421623,0.00019178,2]
[424736279,1781101847000,-880.35,0.00019178,2]
[424736278,1781101847000,-770.62,0.00019178,2]
[424736280,1781101847000,-500.0,0.00019178,2]
[424736277,1781101847000,-500.0,0.00019178,2]
[424736282,1781101847000,-500.0,0.00019178,2]
[424736273,1781101847000,-500.0,0.00019178,2]
[424736268,1781101847000,-500.0,0.00019178,2]
[424736269,1781101847000,-500.0,0.00019178,2]
[424736267,1781101847000,-500.0,0.00019178,2]
[424736271,1781101847000,-574.04,0.00019178,2]
[424736272,1781101847000,-500.0,0.00019178,2]
[424736353,1781101848000,-356.01259604,0.00019726,2]
[424736354,1781101848000,-500.0,0.00019726,2]
[424736350,1781101848000,-500.0,0.00019726,2]
[424736361,1781101848000,-500.0,0.00019726,2]
[424736360,1781101848000,-500.0,0.00019726,2]
[424736349,1781101848000,-500.0,0.00019726,2]
[424736351,1781101848000,-574.04,0.00019726,2]
[424736359,1781101848000,-500.0,0.00019726,2]
[424736345,1781101848000,-1366.79459882,0.00019463,2]
[424736348,1781101848000,-500.0,0.00019726,2]
[424736352,1781101848000,-500.0,0.00019726,2]
[424736358,1781101848000,-880.35,0.00019726,2]
[424736375,1781101848000,-500.0,0.00019726,2]
[424736356,1781101848000,-500.0,0.00019726,2]
[424736355,1781101848000,-1736.27,0.00019726,2]
[424736362,1781101848000,-696.0,0.00019726,2]
[424736363,1781101848000,-5123.68,0.00019726,2]
[424736371,1781101848000,-500.0,0.00019726,2]
[424736368,1781101848000,-500.0,0.00019726,2]
[424736367,1781101848000,-500.0,0.00019726,2]
[424736373,1781101848000,-500.0,0.00019726,2]
[424736369,1781101848000,-568.28,0.00019726,2]
[424736370,1781101848000,-1002.07,0.00019726,2]
[424736372,1781101848000,-500.0,0.00019726,2]
[424736374,1781101848000,-500.0,0.00019726,2]
[424736346,1781101848000,-186.0,0.00019499,2]
[424736357,1781101848000,-770.62,0.00019726,2]
[424736347,1781101848000,-500.0,0.00019726,2]
[424736337,1781101848000,-500.0,0.00019452,2]
[424736341,1781101848000,-509.53,0.00019452,2]
[424736365,1781101848000,-500.0,0.00019726,2]
[424736326,1781101848000,-500.0,0.00019452,2]
[424736316,1781101848000,-574.04,0.00019452,2]
[424736327,1781101848000,-696.0,0.00019452,2]
[424736317,1781101848000,-500.0,0.00019452,2]
[424736318,1781101848000,-500.0,0.00019452,2]
[424736325,1781101848000,-500.0,0.00019452,2]
[424736319,1781101848000,-500.0,0.00019452,2]
[424736322,1781101848000,-770.62,0.00019452,2]
[424736321,1781101848000,-500.0,0.00019452,2]
[424736323,1781101848000,-880.35,0.00019452,2]
[424736324,1781101848000,-500.0,0.00019452,2]
[424736320,1781101848000,-1736.27,0.00019452,2]
[424736328,1781101848000,-5123.68,0.00019452,2]
[424736329,1781101848000,-500.0,0.00019452,2]
[424736336,1781101848000,-500.0,0.00019452,2]
[424736331,1781101848000,-500.0,0.00019452,2]
[424736330,1781101848000,-500.0,0.00019452,2]
[424736333,1781101848000,-500.0,0.00019452,2]
[424736332,1781101848000,-500.0,0.00019452,2]
[424736334,1781101848000,-568.28,0.00019452,2]
[424736335,1781101848000,-1002.07,0.00019452,2]
[424736338,1781101848000,-500.0,0.00019452,2]
[424736340,1781101848000,-500.0,0.00019452,2]
[424736339,1781101848000,-500.0,0.00019452,2]
[424736342,1781101848000,-500.0,0.00019452,2]
[424736344,1781101848000,-500.0,0.00019452,2]
[424736343,1781101848000,-500.0,0.00019452,2]
[424736364,1781101848000,-500.0,0.00019726,2]
[424736366,1781101848000,-500.0,0.00019726,2]
[424736378,1781101848000,-300.66671981,0.00019726,2]
[424736404,1781101848000,-500.0,0.0002,2]
[424736408,1781101848000,-1002.07,0.0002,2]
[424736407,1781101848000,-568.28,0.0002,2]
[424736412,1781101848000,-500.0,0.0002,2]
[424736410,1781101848000,-500.0,0.0002,2]
[424736411,1781101848000,-500.0,0.0002,2]
[424736415,1781101848000,-500.0,0.0002,2]
[424736425,1781101848000,-574.04,0.00020273,2]
[424736420,1781101848000,-152.14,0.00020217,2]
[424736422,1781101848000,-500.0,0.00020273,2]
[424736414,1781101848000,-509.53,0.0002,2]
[424736419,1781101848000,-312.80654646,0.00020215,2]
[424736406,1781101848000,-449.92477819,0.0002,2]
[424736424,1781101848000,-500.0,0.00020273,2]
[424736423,1781101848000,-467.44199545,0.00020273,2]
[424736421,1781101848000,-152.14,0.00020267,2]
[424736418,1781101848000,-152.14,0.00020167,2]
[424736426,1781101848000,-500.0,0.00020273,2]
[424736430,1781101848000,-770.62,0.00020273,2]
[424736427,1781101848000,-500.0,0.00020273,2]
[424736428,1781101848000,-1736.27,0.00020273,2]
[424736429,1781101848000,-500.0,0.00020273,2]
[424736432,1781101848000,-500.0,0.00020273,2]
[424736434,1781101848000,-500.0,0.00020273,2]
[424736431,1781101848000,-880.35,0.00020273,2]
[424736433,1781101848000,-500.0,0.00020273,2]
[424736416,1781101848000,-500.0,0.0002,2]
[424736402,1781101848000,-500.0,0.0002,2]
[424736417,1781101848000,-259.155972,0.00020154,2]
[424736413,1781101848000,-585.85177552,0.0002,2]
[424736409,1781101848000,-500.0,0.0002,2]
[424736380,1781101848000,-154.62,0.00019758,2]
[424736379,1781101848000,-500.0,0.00019726,2]
[424736381,1781101848000,-1000.0,0.000198,2]
[424736383,1781101848000,-665.27168934,0.00019858,7]
[424736386,1781101848000,-211.746292,0.0002,2]
[424736385,1781101848000,-730.73384114,0.0002,3]
[424736384,1781101848000,-500.0,0.0002,2]
[424736377,1781101848000,-500.0,0.00019726,2]
[424736382,1781101848000,-201.12662899,0.00019811,2]
[424736388,1781101848000,-500.0,0.0002,2]
[424736387,1781101848000,-500.0,0.0002,2]
[424736390,1781101848000,-574.04,0.0002,2]
[424736389,1781101848000,-409.76950932,0.0002,2]
[424736376,1781101848000,-509.53,0.00019726,2]
[424736398,1781101848000,-500.0,0.0002,2]
[424736400,1781101848000,-696.0,0.0002,2]
[424736401,1781101848000,-5123.68,0.0002,2]
[424736391,1781101848000,-500.0,0.0002,2]
[424736393,1781101848000,-1736.27,0.0002,2]
[424736392,1781101848000,-500.0,0.0002,2]
[424736394,1781101848000,-500.0,0.0002,2]
[424736396,1781101848000,-880.35,0.0002,2]
[424736395,1781101848000,-770.62,0.0002,2]
[424736399,1781101848000,-500.0,0.0002,2]
[424736397,1781101848000,-500.0,0.0002,2]
[424736403,1781101848000,-500.0,0.0002,2]
[424736405,1781101848000,-500.0,0.0002,2]
[424736476,1781101849000,-500.0,0.00020547,2]
[424736475,1781101849000,-500.0,0.00020547,2]
[424736466,1781101849000,-770.62,0.00020547,2]
[424736477,1781101849000,-1002.07,0.00020547,2]
[424736486,1781101849000,-390.28026201,0.00020563,2]
[424736471,1781101849000,-696.0,0.00020547,2]
[424736464,1781101849000,-1736.27,0.00020547,2]
[424736468,1781101849000,-500.0,0.00020547,2]
[424736469,1781101849000,-500.0,0.00020547,2]
[424736472,1781101849000,-5123.68,0.00020547,2]
[424736467,1781101849000,-880.35,0.00020547,2]
[424736480,1781101849000,-500.0,0.00020547,2]
[424736470,1781101849000,-500.0,0.00020547,2]
[424736479,1781101849000,-500.0,0.00020547,2]
[424736482,1781101849000,-500.0,0.00020547,2]
[424736485,1781101849000,-500.0,0.00020547,2]
[424736483,1781101849000,-509.53,0.00020547,2]
[424736484,1781101849000,-500.0,0.00020547,2]
[424736478,1781101849000,-568.28,0.00020547,2]
[424736481,1781101849000,-500.0,0.00020547,2]
[424736489,1781101849000,-152.14,0.00020617,2]
[424736488,1781101849000,-665.27168935,0.00020593,7]
[424736492,1781101849000,-152.14,0.00020667,2]
[424736495,1781101849000,-152.14,0.00020767,2]
[424736493,1781101849000,-2540.74236805,0.00020706,2]
[424736494,1781101849000,-152.14,0.00020717,2]
[424736490,1781101849000,-1089.11067413,0.00020638,2]
[424736487,1781101849000,-152.14,0.00020567,2]
[424736462,1781101849000,-500.0,0.00020547,2]
[424736436,1781101849000,-5123.68,0.00020273,2]
[424736474,1781101849000,-500.0,0.00020547,2]
[424736496,1781101849000,-152.14,0.00020817,2]
[424736443,1781101849000,-500.0,0.00020273,2]
[424736446,1781101849000,-500.0,0.00020273,2]
[424736448,1781101849000,-500.0,0.00020273,2]
[424736444,1781101849000,-500.0,0.00020273,2]
[424736438,1781101849000,-500.0,0.00020273,2]
[424736447,1781101849000,-509.53,0.00020273,2]
[424736445,1781101849000,-500.0,0.00020273,2]
[424736437,1781101849000,-500.0,0.00020273,2]
[424736439,1781101849000,-500.0,0.00020273,2]
[424736442,1781101849000,-568.28,0.00020273,2]
[424736441,1781101849000,-1002.07,0.00020273,2]
[424736440,1781101849000,-500.0,0.00020273,2]
[424736465,1781101849000,-500.0,0.00020547,2]
[424736449,1781101849000,-500.0,0.00020273,2]
[424736452,1781101849000,-152.14,0.00020367,2]
[424736453,1781101849000,-720.0,0.00020392,2]
[424736450,1781101849000,-1000.0,0.000203,2]
[424736461,1781101849000,-574.04,0.00020547,2]
[424736460,1781101849000,-500.0,0.00020547,2]
[424736457,1781101849000,-152.14,0.00020467,2]
[424736454,1781101849000,-535.56441243,0.00020402,2]
[424736456,1781101849000,-280.50916686,0.00020437,7]
[424736458,1781101849000,-152.14,0.00020517,2]
[424736459,1781101849000,-500.0,0.00020547,2]
[424736455,1781101849000,-152.14,0.00020417,2]
[424736463,1781101849000,-500.0,0.00020547,2]
[424736473,1781101849000,-501.33352592,0.00020547,2]
[424736451,1781101849000,-152.14,0.00020317,2]
[424736491,1781101849000,-1319.86999936,0.00020638,2]
[424736435,1781101849000,-696.0,0.00020273,2]
[424736499,1781101849000,-574.04,0.00020821,2]
[424736536,1781101849000,-574.04,0.00021095,2]
[424736529,1781101849000,-535.56441243,0.00020959,2]
[424736527,1781101849000,-191.19426,0.00020942,2]
[424736528,1781101849000,-256.566369,0.00020942,2]
[424736530,1781101849000,-152.14,0.00020967,2]
[424736531,1781101849000,-535.56441243,0.00020993,2]
[424736532,1781101849000,-150.0,0.00021,2]
[424736539,1781101849000,-1736.27,0.00021095,2]
[424736549,1781101849000,-500.0,0.00021095,2]
[424736538,1781101849000,-500.0,0.00021095,2]
[424736541,1781101849000,-770.62,0.00021095,2]
[424736543,1781101849000,-500.0,0.00021095,2]
[424736542,1781101849000,-880.35,0.00021095,2]
[424736535,1781101849000,-500.0,0.00021095,2]
[424736544,1781101849000,-500.0,0.00021095,2]
[424736540,1781101849000,-500.0,0.00021095,2]
[424736546,1781101849000,-696.0,0.00021095,2]
[424736545,1781101849000,-500.0,0.00021095,2]
[424736547,1781101849000,-5123.68,0.00021095,2]
[424736552,1781101849000,-568.28,0.00021095,2]
[424736554,1781101849000,-500.0,0.00021095,2]
[424736553,1781101849000,-500.0,0.00021095,2]
[424736550,1781101849000,-500.0,0.00021095,2]
[424736551,1781101849000,-1002.07,0.00021095,2]
[424736557,1781101849000,-509.53,0.00021095,2]
[424736555,1781101849000,-500.0,0.00021095,2]
[424736558,1781101849000,-500.0,0.00021095,2]
[424736497,1781101849000,-414.20669528,0.00020821,2]
[424736548,1781101849000,-500.0,0.00021095,2]
[424736537,1781101849000,-500.0,0.00021095,2]
[424736556,1781101849000,-500.0,0.00021095,2]
[424736526,1781101849000,-311.907461,0.00020942,2]
[424736534,1781101849000,-152.14,0.00021067,2]
[424736498,1781101849000,-500.0,0.00020821,2]
[424736503,1781101849000,-500.0,0.00020821,2]
[424736502,1781101849000,-1736.27,0.00020821,2]
[424736501,1781101849000,-500.0,0.00020821,2]
[424736504,1781101849000,-770.62,0.00020821,2]
[424736512,1781101849000,-500.0,0.00020821,2]
[424736511,1781101849000,-500.0,0.00020821,2]
[424736509,1781101849000,-696.0,0.00020821,2]
[424736506,1781101849000,-500.0,0.00020821,2]
[424736507,1781101849000,-500.0,0.00020821,2]
[424736508,1781101849000,-500.0,0.00020821,2]
[424736505,1781101849000,-880.35,0.00020821,2]
[424736510,1781101849000,-5123.68,0.00020821,2]
[424736500,1781101849000,-500.0,0.00020821,2]
[424736515,1781101849000,-568.28,0.00020821,2]
[424736523,1781101849000,-535.56441243,0.00020892,2]
[424736520,1781101849000,-509.53,0.00020821,2]
[424736518,1781101849000,-500.0,0.00020821,2]
[424736519,1781101849000,-500.0,0.00020821,2]
[424736521,1781101849000,-500.0,0.00020821,2]
[424736517,1781101849000,-500.0,0.00020821,2]
[424736533,1781101849000,-152.14,0.00021017,2]
[424736524,1781101849000,-259.155972,0.00020908,2]
[424736522,1781101849000,-152.14,0.00020867,2]
[424736514,1781101849000,-1002.07,0.00020821,2]
[424736513,1781101849000,-500.0,0.00020821,2]
[424736525,1781101849000,-152.14,0.00020917,2]
[424736516,1781101849000,-500.0,0.00020821,2]
[424736609,1781101850000,-696.0,0.00021643,2]
[424736599,1781101850000,-500.0,0.00021643,2]
[424736594,1781101850000,-152.14,0.00021467,2]
[424736591,1781101850000,-535.56441243,0.00021393,2]
[424736593,1781101850000,-280.50916686,0.00021459,7]
[424736590,1781101850000,-535.56441243,0.00021369,2]
[424736595,1781101850000,-424.16666856,0.0002148,2]
[424736587,1781101850000,-500.0,0.00021369,2]
[424736598,1781101850000,-152.14,0.00021617,2]
[424736589,1781101850000,-500.0,0.00021369,2]
[424736592,1781101850000,-152.14,0.00021417,2]
[424736588,1781101850000,-509.53,0.00021369,2]
[424736601,1781101850000,-500.0,0.00021643,2]
[424736603,1781101850000,-1736.27,0.00021643,2]
[424736604,1781101850000,-381.53281648,0.00021643,2]
[424736602,1781101850000,-500.0,0.00021643,2]
[424736605,1781101850000,-770.62,0.00021643,2]
[424736606,1781101850000,-880.35,0.00021643,2]
[424736607,1781101850000,-474.26338962,0.00021643,2]
[424736608,1781101850000,-500.0,0.00021643,2]
[424736622,1781101850000,-152.14,0.00021667,2]
[424736611,1781101850000,-500.0,0.00021643,2]
[424736621,1781101850000,-259.155972,0.00021661,2]
[424736612,1781101850000,-500.0,0.00021643,2]
[424736596,1781101850000,-152.14,0.00021517,2]
[424736619,1781101850000,-509.53,0.00021643,2]
[424736600,1781101850000,-574.04,0.00021643,2]
[424736597,1781101850000,-152.14,0.00021567,2]
[424736568,1781101850000,-574.04,0.00021369,2]
[424736586,1781101850000,-500.0,0.00021369,2]
[424736620,1781101850000,-418.75121731,0.00021643,2]
[424736560,1781101850000,-152.14,0.00021167,2]
[424736559,1781101850000,-152.14,0.00021117,2]
[424736562,1781101850000,-152.14,0.00021217,2]
[424736573,1781101850000,-770.62,0.00021369,2]
[424736572,1781101850000,-500.0,0.00021369,2]
[424736561,1781101850000,-198.615707,0.0002121,2]
[424736564,1781101850000,-152.14,0.00021317,2]
[424736563,1781101850000,-152.14,0.00021267,2]
[424736565,1781101850000,-152.14,0.00021367,2]
[424736569,1781101850000,-500.0,0.00021369,2]
[424736566,1781101850000,-535.56441243,0.00021367,2]
[424736585,1781101850000,-500.0,0.00021369,2]
[424736567,1781101850000,-500.0,0.00021369,2]
[424736570,1781101850000,-500.0,0.00021369,2]
[424736574,1781101850000,-880.35,0.00021369,2]
[424736577,1781101850000,-500.0,0.00021369,2]
[424736576,1781101850000,-500.0,0.00021369,2]
[424736578,1781101850000,-696.0,0.00021369,2]
[424736584,1781101850000,-500.0,0.00021369,2]
[424736575,1781101850000,-597.5013824,0.00021369,2]
[424736580,1781101850000,-500.0,0.00021369,2]
[424736579,1781101850000,-5123.68,0.00021369,2]
[424736581,1781101850000,-500.0,0.00021369,2]
[424736583,1781101850000,-1002.07,0.00021369,2]
[424736582,1781101850000,-500.0,0.00021369,2]
[424736571,1781101850000,-1736.27,0.00021369,2]
[424736610,1781101850000,-5123.68,0.00021643,2]
[424736615,1781101850000,-500.0,0.00021643,2]
[424736671,1781101850000,-171.491928,0.00021918,2]
[424736649,1781101850000,-500.0,0.00021917,2]
[424736655,1781101850000,-509.53,0.00021917,2]
[424736652,1781101850000,-500.0,0.00021917,2]